lending/lending_fUSD_20251116
["ID","MTS","AMOUNT","RATE_DAILY","PERIOD"]
[394119087,1763305854601,-3999.996,0.0002739,7]
[394119088,1763305854611,-3999.996,0.0002739,7]
[394119089,1763305854621,-3999.996,0.0002739,7]
[394119090,1763305854631,-238.041183,0.0002739,7]
[394119091,1763305854641,-238.041183,0.0002739,7]
[394119092,1763305854650,-238.041183,0.0002739,7]
[394119093,1763305854660,-238.041183,0.0002739,7]
[394119094,1763305854671,-242.837824,0.0002739,7]
[394119095,1763305854681,-237.75620666,0.00027397,4]
[394119096,1763305854691,-500.0,0.00027397,4]
[394119097,1763305854702,-500.0,0.00027397,4]
[394119098,1763305854711,-500.0,0.00027397,4]
[394119099,1763305854721,-500.0,0.00027397,4]
[394119100,1763305854731,-500.0,0.00027397,4]
[394119101,1763305854740,-494.23305936,0.00027397,4]
[394119102,1763305854753,-5.76694064,0.00027397,4]
[394119103,1763305854763,-291.20405938,0.00027397,4]
[394119104,1763305854775,-208.79594062,0.00027397,4]
[394119105,1763305854785,-500.0,0.00027397,4]
[394119106,1763305854794,-773.85,0.00027397,2]
[394119107,1763305854803,-513.52,0.00027397,2]
[394119108,1763305854813,-300.0,0.00027397,2]
[394119109,1763305854823,-1093.19939182,0.00027397,2]
[394119112,1763305999510,500.0,0.00016454,2]
[394119113,1763306103594,1757.12,0.00021152,30]
[394119114,1763306167889,5749.46603351,7.945e-05,2]
[394119115,1763306167913,3988.59760849,7.945e-05,2]
[394119149,1763306561072,863.47,0.00016438,2]
[394119151,1763306736495,3328.24434078,0.0001,2]
[394119153,1763306823362,1517.64,0.000153,2]
[394119162,1763306940821,150.0,0.00030134,120]
[394119165,1763306958927,302.05805073,0.000164,2]
[394119166,1763306958952,93.32911407,0.000164,2]
[394119176,1763307032165,-300.0,0.0001674,2]
[394119177,1763307032175,-1200.0,0.0001674,2]
[394119178,1763307032184,-195.0,0.0001674,2]
[394119179,1763307032194,-300.0,0.00016741,2]
[394119180,1763307032203,-17405.87747032,0.00016741,2]
[394119181,1763307032220,-908.31160856,0.00016741,2]
[394119182,1763307032259,-4826.37978,0.00016741,2]
[394119183,1763307032270,-192.16063212,0.00016741,2]
[394119184,1763307032279,-71.37487497,0.00016809,2]
[394119185,1763307032292,-123.62512503,0.00016809,2]
[394119190,1763307032496,-300.0,0.0001691,2]
[394119191,1763307032518,-300.0,0.0001691,2]
[394119193,1763307032529,-1200.0,0.00016912,2]
[394119196,1763307032541,-187.15161929,0.00016986,2]
[394119199,1763307032551,-426.46,0.00017172,2]
[394119201,1763307032561,-450.08162066,0.000172,2]
[394119203,1763307032571,-861.81,0.00017319,2]
[394119205,1763307032580,-579.6332187,0.000174,2]
[394119206,1763307032590,-1309.2484439,0.000174,2]
[394119207,1763307032599,-550.0,0.00017472,2]
[394119208,1763307032608,-503.34067771,0.00017473,2]
[394119209,1763307032617,-501.55257182,0.00017473,2]
[394119210,1763307032627,-506.48647168,0.00017473,2]
[394119211,1763307032637,-500.0,0.00017473,2]
[394119212,1763307032646,-500.0,0.00017473,2]
[394119213,1763307032656,-500.0,0.00017473,2]
[394119214,1763307032667,-431.70775828,0.00017473,2]
[394119215,1763307032676,-200.47464309,0.00017473,2]
[394119216,1763307032686,-532.96288504,0.00017473,2]
[394119217,1763307032696,-194.1292471,0.00017473,2]
[394119218,1763307032705,-500.0,0.00017473,2]
[394119219,1763307032715,-510.09371407,0.00017473,2]
[394119220,1763307032725,-500.0,0.00017473,2]
[394119221,1763307032735,-500.0,0.00017473,2]
[394119222,1763307032745,-501.05164124,0.00017473,2]
[394119223,1763307032755,-500.0,0.00017499,2]
[394119224,1763307032766,-500.0,0.00017499,2]
[394119225,1763307032776,-500.0,0.00017499,2]
[394119226,1763307032788,-500.0,0.00017499,2]
[394119227,1763307032798,-500.0,0.00017499,2]
[394119228,1763307032808,-500.0,0.00017499,2]
[394119229,1763307032818,-500.0,0.00017499,2]
[394119230,1763307032827,-500.0,0.00017499,2]
[394119231,1763307032837,-500.0,0.00017499,2]
[394119232,1763307032846,-425.26176238,0.00017499,2]
[394119233,1763307032855,-500.0,0.00017499,2]
[394119234,1763307032865,-500.0,0.00017499,2]
[394119235,1763307032875,-500.0,0.00017499,2]
[394119236,1763307032884,-500.0,0.00017499,2]
[394119237,1763307032894,-500.0,0.00017499,2]
[394119238,1763307032904,-500.0,0.00017499,2]
[394119239,1763307032915,-558.83196403,0.00017499,2]
[394119240,1763307032925,-500.0,0.00017499,2]
[394119241,1763307032935,-500.0,0.00017499,2]
[394119242,1763307032944,-500.0,0.00017499,2]
[394119243,1763307032954,-500.0,0.00017499,2]
[394119244,1763307032964,-500.0,0.00017499,2]
[394119245,1763307032974,-500.0,0.00017499,2]
[394119246,1763307032983,-500.0,0.00017499,2]
[394119247,1763307032992,-500.0,0.00017499,2]
[394119248,1763307033002,-500.0,0.00017499,2]
[394119249,1763307033011,-500.0,0.00017499,2]
[394119250,1763307033020,-500.0,0.00017499,2]
[394119251,1763307033029,-500.0,0.00017499,2]
[394119252,1763307033041,-500.0,0.00017499,2]
[394119253,1763307033050,-500.0,0.00017499,2]
[394119254,1763307033060,-500.0,0.00017499,2]
[394119255,1763307033069,-500.0,0.00017499,2]
[394119256,1763307033079,-500.0,0.00017499,2]
[394119257,1763307033089,-500.0,0.00017499,2]
[394119258,1763307033098,-500.0,0.00017499,2]
[394119259,1763307033108,-500.0,0.00017499,2]
[394119260,1763307033117,-500.0,0.00017499,2]
[394119261,1763307033127,-500.0,0.00017499,2]
[394119262,1763307033137,-500.0,0.00017499,2]
[394119263,1763307033147,-500.0,0.00017499,2]
[394119264,1763307033156,-500.0,0.00017499,2]
[394119265,1763307033165,-500.0,0.00017499,2]
[394119266,1763307033175,-500.0,0.00017499,2]
[394119267,1763307033185,-500.0,0.00017499,2]
[394119268,1763307033194,-500.0,0.00017499,2]
[394119269,1763307033204,-500.0,0.00017499,2]
[394119270,1763307033213,-500.0,0.00017499,2]
[394119271,1763307033222,-500.0,0.00017499,2]
[394119272,1763307033231,-500.0,0.00017499,2]
[394119273,1763307033240,-500.0,0.00017499,2]
[394119274,1763307033249,-500.0,0.00017499,2]
[394119275,1763307033259,-500.0,0.00017499,2]
[394119276,1763307033269,-500.0,0.00017499,2]
[394119277,1763307033278,-500.0,0.00017499,2]
[394119278,1763307033288,-500.0,0.00017499,2]
[394119279,1763307033298,-500.0,0.00017499,2]
[394119280,1763307033308,-500.0,0.00017499,2]
[394119281,1763307033317,-500.0,0.00017499,2]
[394119282,1763307033327,-645.36017919,0.00017499,2]
[394119283,1763307033336,-500.0,0.00017499,2]
[394119284,1763307033347,-500.0,0.00017499,2]
[394119285,1763307033356,-500.0,0.00017499,2]
[394119286,1763307033366,-500.0,0.00017499,2]
[394119287,1763307033376,-500.0,0.00017499,2]
[394119288,1763307033386,-500.0,0.00017499,2]
[394119289,1763307033396,-500.0,0.00017499,2]
[394119290,1763307033405,-500.0,0.00017499,2]
[394119291,1763307033415,-500.0,0.00017499,2]
[394119292,1763307033425,-500.0,0.00017499,2]
[394119293,1763307033435,-500.0,0.00017499,2]
[394119294,1763307033445,-500.0,0.00017499,2]
[394119295,1763307033455,-500.0,0.00017499,2]
[394119296,1763307033468,-500.0,0.00017499,2]
[394119297,1763307033478,-500.0,0.00017499,2]
[394119298,1763307033489,-500.0,0.00017499,2]
[394119299,1763307033499,-500.0,0.00017499,2]
[394119300,1763307033509,-194.5394073,0.00017499,2]
[394119301,1763307033519,-173116.08444534,0.000175,2]
[394119302,1763307033531,-43711.80337819,0.000175,2]
[394119303,1763307033546,-1059.77703254,0.000175,2]
[394119304,1763307033557,-535.362,0.000175,2]
[394119309,1763307038233,-1832.23033487,0.000175,2]
[394119310,1763307038320,-161058.8540799,0.000175,2]
[394119311,1763307038332,-1370.716068,0.000175,2]
[394119312,1763307038344,-180067.22936943,0.000175,2]
[394119313,1763307038355,-3126.6,0.000175,2]
[394119314,1763307038374,-2290.94,0.000175,2]
[394119315,1763307038477,-191830.40329173,0.000175,2]
[394119316,1763307038487,-500.0,0.000175,6]
[394119317,1763307038497,-210.0,0.00017502,2]
[394119318,1763307038510,-7503.3603,0.00017572,2]
[394119319,1763307038520,-1100.0,0.000176,6]
[394119320,1763307038531,-1104.16044283,0.00017623,2]
[394119321,1763307038543,-1309.2484439,0.0001765,2]
[394119322,1763307038554,-151.0,0.00017662,2]
[394119323,1763307038563,-151.0,0.00017662,2]
[394119324,1763307038573,-151.0,0.00017662,2]
[394119325,1763307038586,-151.0,0.00017662,2]
[394119326,1763307038596,-151.0,0.00017662,2]
[394119327,1763307038606,-151.0,0.00017662,2]
[394119329,1763307038616,-151.0,0.00017662,2]
[394119330,1763307038625,-151.0,0.00017662,2]
[394119331,1763307038635,-151.0,0.00017662,2]
[394119332,1763307038645,-151.0,0.00017662,2]
[394119333,1763307038654,-151.0,0.00017662,2]
[394119334,1763307038664,-151.0,0.00017662,2]
[394119336,1763307038673,-151.0,0.00017662,2]
[394119337,1763307038683,-151.0,0.00017662,2]
[394119338,1763307038692,-151.0,0.00017662,2]
[394119339,1763307038702,-151.0,0.00017662,2]
[394119340,1763307038711,-151.0,0.00017662,2]
[394119341,1763307038722,-151.0,0.00017662,2]
[394119342,1763307038732,-151.0,0.00017662,2]
[394119343,1763307038741,-151.0,0.00017662,2]
[394119344,1763307038751,-151.0,0.00017662,2]
[394119345,1763307038761,-151.0,0.00017662,2]
[394119346,1763307038771,-151.0,0.00017662,2]
[394119347,1763307038784,-151.0,0.00017662,2]
[394119348,1763307038794,-151.0,0.00017662,2]
[394119349,1763307038804,-151.0,0.00017662,2]
[394119350,1763307038814,-151.0,0.00017662,2]
[394119351,1763307038824,-151.0,0.00017662,2]
[394119352,1763307038836,-151.0,0.00017662,2]
[394119353,1763307038845,-151.0,0.00017662,2]
[394119354,1763307038854,-151.0,0.00017662,2]
[394119355,1763307038864,-151.0,0.00017662,2]
[394119356,1763307038873,-151.0,0.00017662,2]
[394119357,1763307038883,-151.0,0.00017662,2]
[394119358,1763307038893,-151.0,0.00017662,2]
[394119359,1763307038902,-151.0,0.00017662,2]
[394119360,1763307038912,-151.0,0.00017662,2]
[394119361,1763307038921,-151.0,0.00017662,2]
[394119362,1763307038930,-151.0,0.00017662,2]
[394119363,1763307038939,-151.0,0.00017662,2]
[394119364,1763307038949,-250.65,0.00017662,2]
[394119365,1763307038959,-245.47636787,0.00017672,2]
[394119366,1763307038969,-500.0,0.00017672,2]
[394119367,1763307038982,-500.0,0.00017672,2]
[394119368,1763307038992,-500.0,0.00017672,2]
[394119369,1763307039002,-500.0,0.00017672,2]
[394119370,1763307039011,-640.7495824,0.00017672,2]
[394119371,1763307039021,-500.0,0.00017673,2]
[394119372,1763307039030,-500.0,0.00017673,2]
[394119373,1763307039041,-1700.0,0.000177,6]
[394119374,1763307039051,-200.0,0.00017724,2]
[394119375,1763307039061,-9999.99,0.00017728,2]
[394119376,1763307039071,-499.99,0.00017728,2]
[394119377,1763307039081,-9999.99,0.00017728,2]
[394119378,1763307039090,-1223.88,0.00017728,2]
[394119379,1763307039100,-25964.66,0.00017728,2]
[394119380,1763307039109,-999.99,0.00017728,2]
[394119381,1763307039119,-9999.99,0.00017728,2]
[394119382,1763307039128,-150.99,0.00017728,2]
[394119383,1763307039138,-500.0,0.00017773,2]
[394119384,1763307039147,-500.0,0.00017773,2]
[394119385,1763307039157,-500.0,0.00017799,2]
[394119386,1763307039166,-500.0,0.00017799,2]
[394119387,1763307039177,-500.0,0.00017799,2]
[394119388,1763307039187,-500.0,0.00017799,2]
[394119389,1763307039196,-500.0,0.00017799,2]
[394119390,1763307039205,-188.66479574,0.00017799,2]
[394119391,1763307039215,-500.0,0.00017799,2]
[394119392,1763307039225,-500.0,0.00017799,2]
[394119393,1763307039235,-500.0,0.00017799,2]
[394119394,1763307039245,-500.0,0.00017799,2]
[394119395,1763307039255,-500.0,0.00017799,2]
[394119396,1763307039265,-500.0,0.00017799,2]
[394119397,1763307039275,-500.0,0.00017799,2]
[394119398,1763307039285,-500.0,0.00017799,2]
[394119399,1763307039295,-500.0,0.00017799,2]
[394119400,1763307039305,-500.0,0.00017799,2]
[394119401,1763307039315,-541.09574014,0.00017799,2]
[394119402,1763307039324,-2200.0,0.000178,6]
[394119403,1763307039334,-1752.77323536,0.000179,2]
[394119404,1763307039344,-2800.0,0.000179,6]
[394119405,1763307039354,-1309.2484439,0.000179,2]
[394119406,1763307039364,-2953.92967837,0.000179,2]
[394119407,1763307039374,-1860.6834273,0.000179,2]
[394119408,1763307039384,-193.03464017,0.000179,2]
[394119409,1763307039394,-205.41317705,0.000179,3]
[394119410,1763307039404,-259.9394101,0.000179,2]
[394119411,1763307039413,-250.65,0.00017936,2]
[394119412,1763307039423,-1671.0,0.00017973,2]
[394119413,1763307039650,-500.0,0.00017973,2]
[394119414,1763307039660,-164.00583255,0.00017973,2]
[394119415,1763307039670,-505.67181755,0.00017973,2]
[394119416,1763307039679,-503.31304757,0.00017973,2]
[394119417,1763307039688,-504.13993276,0.00017973,2]
[394119418,1763307039698,-502.48139119,0.00017973,2]
[394119419,1763307039707,-486.89386542,0.00017973,2]
[394119420,1763307039716,-500.0,0.00017973,2]
[394119421,1763307039726,-503.42110984,0.00017973,2]
[394119422,1763307039736,-503.07787062,0.00017973,2]
[394119423,1763307039746,-501.25798024,0.00017973,2]
[394119424,1763307039755,-502.52932998,0.00017973,2]
[394119425,1763307039765,-166.05374564,0.00017973,2]
[394119426,1763307039774,-500.0,0.00017973,2]
[394119427,1763307039784,-502.59344197,0.00017973,2]
[394119428,1763307039793,-500.0,0.00017973,2]
[394119429,1763307039802,-2741.61835602,0.0001799,2]
[394119430,1763307039811,-2741.61835602,0.0001799,2]
[394119431,1763307039819,-300.0,0.00017999,2]
[394119432,1763307039828,-309.69481458,0.00017999,2]
[394119433,1763307039838,-540.56705652,0.00017999,2]
[394119434,1763307039847,-500.0,0.00017999,2]
[394119435,1763307039857,-500.0,0.00017999,2]
[394119436,1763307039866,-500.0,0.00017999,2]
[394119437,1763307039876,-557.24371823,0.00017999,2]
[394119438,1763307039886,-284.116,0.00018,2]
[394119439,1763307039895,-1000.0,0.00018,2]
[394119440,1763307039904,-1000.0,0.00018,2]
[394119441,1763307039914,-1000.0,0.00018,2]
[394119442,1763307039923,-1000.0,0.00018,2]
[394119443,1763307039934,-1000.0,0.00018,2]
[394119444,1763307039943,-1000.0,0.00018,2]
[394119445,1763307039953,-2164666.10183198,0.00018,2]
[394119450,1763307040612,-707.49999994,0.00018,2]
[394119451,1763307040626,-15578.2288098,0.00018,2]
[394119452,1763307040637,-506.77396754,0.00018,2]
[394119454,1763307040649,-1255886.64964298,0.00018,2]
[394119507,1763307045554,-208088.42781757,0.00018,2]
[394119508,1763307045565,-3500.0,0.00018,2]
[394119509,1763307045643,-1000.0,0.00018,2]
[394119534,1763307046183,-51019.04988125,0.00018,2]
[394119537,1763307046424,-115410.11050118,0.00018,2]
[394119538,1763307046465,-582780.37782793,0.00018,2]
[394119539,1763307046476,-605.791,0.00018,2]
[394119540,1763307046484,-1000.0,0.00018,2]
[394119541,1763307046493,-534.3613382,0.00018021,2]
[394119542,1763307046502,-500.0,0.00018021,2]
[394119543,1763307046513,-546.48826961,0.00018021,2]
[394119544,1763307046523,-1000.0,0.00018021,2]
[394119545,1763307046532,-501.87365056,0.00018021,2]
[394119546,1763307046542,-1011.00806472,0.00018021,2]
[394119547,1763307046552,-1000.0,0.00018082,2]
[394119548,1763307046561,-250.65,0.0001821,2]
[394119549,1763307046571,-500.0,0.00018221,2]
[394119550,1763307046580,-507.76034838,0.00018221,2]
[394119551,1763307046589,-420.0,0.00018289,2]
[394119552,1763307046598,-500.0,0.00018321,2]
[394119553,1763307046607,-500.84878588,0.00018321,2]
[394119554,1763307046617,-1680.0,0.0001838,2]
[394119555,1763307046626,-300.0,0.00018414,2]
[394119556,1763307046636,-300.0,0.00018414,2]
[394119557,1763307046649,-195.0,0.00018414,2]
[394119558,1763307046659,-250.0,0.00018414,2]
[394119559,1763307046668,-373.0,0.00018474,2]
[394119560,1763307046678,-250.65,0.00018484,2]
[394119561,1763307046687,-250.0,0.0001851,2]
[394119573,1763307046889,-590.90994192,0.00018521,2]
[394119574,1763307046898,-465.67133023,0.00018521,2]
[394119575,1763307046908,-860.0,0.00018572,2]
[394119576,1763307046916,-500.0,0.00018573,2]
[394119577,1763307046926,-500.0,0.00018573,2]
[394119578,1763307046935,-300.0,0.00018603,2]
[394119579,1763307046944,-300.0,0.00018603,2]
[394119580,1763307046954,-195.0,0.00018603,2]
[394119581,1763307046966,-250.0,0.00018699,2]
[394119582,1763307046976,-151.40785574,0.00018725,7]
[394119583,1763307046986,-250.65697047,0.00018758,2]
[394119584,1763307046995,-1000.0,0.0001876,2]
[394119585,1763307047005,-18940.74024152,0.00018783,2]
[394119586,1763307047015,-500.0,0.000188,2]
[394119587,1763307047024,-508.2246355,0.000188,2]
[394119588,1763307047034,-500.0,0.000188,2]
[394119589,1763307047043,-500.0,0.000188,2]
[394119590,1763307047053,-569.20872666,0.000188,2]
[394119591,1763307047063,-844.99,0.000188,7]
[394119592,1763307047072,-150.39,0.000188,2]
[394119593,1763307047082,-150.39,0.000188,2]
[394119594,1763307047091,-150.39,0.000188,2]
[394119595,1763307047101,-150.39,0.000188,2]
[394119596,1763307047110,-150.39,0.000188,2]
[394119597,1763307047120,-150.39,0.000188,2]
[394119598,1763307047129,-150.39,0.000188,2]
[394119599,1763307047139,-150.39,0.000188,2]
[394119600,1763307047149,-150.39,0.000188,2]
[394119601,1763307047159,-150.39,0.000188,2]
[394119602,1763307047178,-150.39,0.000188,2]
[394119603,1763307047190,-150.39,0.000188,2]
[394119604,1763307047200,-150.39,0.000188,2]
[394119605,1763307047211,-150.39,0.000188,2]
[394119606,1763307047221,-150.39,0.000188,2]
[394119607,1763307047231,-150.39,0.000188,2]
[394119608,1763307047241,-150.39,0.000188,2]
[394119609,1763307047252,-150.39,0.000188,2]
[394119610,1763307047262,-150.39,0.000188,2]
[394119611,1763307047272,-150.39,0.000188,2]
[394119612,1763307047282,-150.39,0.000188,2]
[394119613,1763307047292,-150.39,0.000188,2]
[394119614,1763307047304,-150.39,0.000188,2]
[394119615,1763307047314,-150.39,0.000188,2]
[394119616,1763307047324,-150.39,0.000188,2]
[394119617,1763307047335,-150.39,0.000188,2]
[394119618,1763307047345,-150.39,0.000188,2]
[394119619,1763307047355,-150.39,0.000188,2]
[394119620,1763307047365,-150.39,0.000188,2]
[394119621,1763307047375,-150.39,0.000188,2]
[394119622,1763307047385,-150.39,0.000188,2]
[394119623,1763307047395,-150.39,0.000188,2]
[394119624,1763307047405,-150.39,0.000188,2]
[394119625,1763307047415,-150.39,0.000188,2]
[394119626,1763307047425,-150.39,0.000188,2]
[394119627,1763307047435,-150.39,0.000188,2]
[394119628,1763307047445,-150.39,0.000188,2]
[394119629,1763307047455,-150.39,0.000188,2]
[394119630,1763307047468,-150.39,0.000188,2]
[394119631,1763307047477,-150.39,0.000188,2]
[394119632,1763307047487,-150.39,0.000188,2]
[394119633,1763307047497,-150.39,0.000188,2]
[394119634,1763307047507,-150.39,0.000188,2]
[394119635,1763307047517,-150.39,0.000188,2]
[394119636,1763307047527,-150.39,0.000188,2]
[394119637,1763307047536,-150.39,0.000188,2]
[394119638,1763307047550,-150.39,0.000188,2]
[394119639,1763307047561,-150.39,0.000188,2]
[394119640,1763307047571,-150.39,0.000188,2]
[394119641,1763307047581,-150.39,0.000188,2]
[394119642,1763307047592,-150.39,0.000188,2]
[394119643,1763307047602,-150.39,0.000188,2]
[394119644,1763307047611,-150.39,0.000188,2]
[394119645,1763307047621,-150.39,0.000188,2]
[394119646,1763307047632,-150.39,0.000188,2]
[394119647,1763307047641,-150.39,0.000188,2]
[394119648,1763307047651,-179.94,0.00018954,2]
[394119649,1763307047661,-467.31894563,0.00019,2]
[394119650,1763307047671,-215.07186906,0.00019037,2]
[394119651,1763307047680,-418.24,0.00019098,2]
[394119652,1763307047690,-323.08070533,0.00019121,2]
[394119653,1763307047700,-500.99618926,0.00019121,2]
[394119654,1763307047710,-151.0,0.00019178,2]
[394119655,1763307047720,-625.50272656,0.00019338,2]
[394119656,1763307047730,-500.0,0.00019338,2]
[394119657,1763307047740,-1001.27954765,0.00019348,2]
[394119658,1763307047749,-504.36442278,0.00019348,2]
[394119659,1763307047759,-504.57461567,0.00019348,2]
[394119660,1763307047769,-1195.95199903,0.0001935,7]
[394119661,1763307047779,-1000.0,0.00019438,2]
[394119662,1763307047788,-579.6332187,0.00019678,2]
[394119663,1763307047798,-156.587,0.00019726,2]
[394119664,1763307047810,-150.79490104,0.00019973,2]
[394119665,1763307047819,-180.0,0.00019981,2]
[394119666,1763307047830,-150.39,0.0001999,2]
[394119667,1763307047839,-300.0,0.00019999,2]
[394119668,1763307047849,-1030.70332689,0.0002,2]
[394119669,1763307047858,-1521.36545039,0.0002,2]
[394119670,1763307047869,-1453.4581391,0.0002,5]
[394119671,1763307047878,-60016.12268699,0.0002,5]
[394119672,1763307047892,-540.52,0.0002,5]
[394119673,1763307047903,-1384.2325122,0.0002,5]
[394119674,1763307047912,-809.90191103,0.0002,2]
[394119675,1763307047922,-2185.00913448,0.0002,3]
[394119676,1763307047934,-1036.88633408,0.0002,2]
[394119677,1763307047943,-2841.49716656,0.0002,2]
[394119678,1763307047953,-4085.64337519,0.0002,2]
[394119679,1763307047963,-1000.0,0.0002,7]
[394119680,1763307047972,-1000.0,0.00020116,2]
[394119681,1763307047982,-2351.0,0.00020181,2]
[394119682,1763307047992,-500.0,0.00020203,2]
[394119683,1763307048002,-162.380719,0.00020274,2]
[394119684,1763307048012,-343.85,0.00020331,2]
[394119685,1763307048023,-1198.74422794,0.000205,2]
[394119686,1763307048032,-163.11625529,0.0002055,2]
[394119687,1763307048041,-215.39372548,0.00020638,2]
[394119688,1763307048051,-1000.0,0.00020692,2]
[394119689,1763307048062,-1000.0,0.00020795,2]
[394119690,1763307048072,-168.3888056,0.00020822,2]
[394119691,1763307048082,-6110.90654718,0.00020867,2]
[394119692,1763307048093,-150.39,0.00020941,2]
[394119693,1763307048103,-300.0,0.0002095,2]
[394119694,1763307048117,-9999.99,0.00020951,2]
[394119695,1763307048135,-27630.24,0.00020951,2]
[394119696,1763307048146,-181.0,0.00021,2]
[394119697,1763307048156,-6353.55687192,0.00021,2]
[394119698,1763307048166,-9380.90860723,0.00021,2]
[394119699,1763307048176,-1183.54543186,0.00021,2]
[394119700,1763307048186,-195.36089215,0.00021,2]
[394119701,1763307048196,-1599.0,0.00021095,2]
[394119702,1763307048205,-821.0,0.00021095,2]
[394119703,1763307048216,-793.0,0.00021095,2]
[394119704,1763307048226,-1275.0,0.00021095,2]
[394119705,1763307048235,-907.0,0.00021095,2]
[394119706,1763307048245,-1190.0,0.00021095,2]
[394119707,1763307048255,-1604.0,0.00021095,2]
[394119708,1763307048265,-704.0,0.00021095,2]
[394119709,1763307048275,-1318.0,0.00021095,2]
[394119710,1763307048285,-3475.978,0.00021095,2]
[394119711,1763307048294,-200.0,0.00021124,2]
[394119712,1763307048306,-160.26946118,0.00021353,2]
[394119713,1763307048316,-174.61919141,0.0002137,2]
[394119714,1763307048330,-150.0,0.00021373,2]
[394119715,1763307048340,-162.47544706,0.00021373,2]
[394119716,1763307048351,-150.39,0.0002139,2]
[394119717,1763307048362,-309.52096424,0.00021399,2]
[394119718,1763307048372,-151.0,0.000214,2]
[394119719,1763307048382,-151.0,0.000214,2]
[394119720,1763307048392,-9199.9908,0.000214,2]
[394119721,1763307048402,-151.0,0.000214,2]
[394119722,1763307048412,-151.0,0.000214,2]
[394119723,1763307048422,-9199.9908,0.000214,2]
[394119724,1763307048432,-9199.9908,0.000214,2]
[394119725,1763307048441,-218.557661,0.000214,2]
[394119726,1763307048451,-9199.9908,0.000214,2]
[394119727,1763307048463,-151.0,0.000214,2]
[394119728,1763307048476,-151.0,0.000214,2]
[394119729,1763307048485,-151.0,0.000214,2]
[394119730,1763307048494,-151.0,0.000214,2]
[394119731,1763307048505,-151.0,0.000214,2]
[394119732,1763307048515,-151.0,0.000214,2]
[394119733,1763307048525,-151.0,0.000214,2]
[394119734,1763307048535,-190.432946,0.000214,2]
[394119735,1763307048546,-190.432946,0.000214,2]
[394119736,1763307048557,-190.432946,0.000214,2]
[394119737,1763307048567,-1118.53893,0.000214,2]
[394119738,1763307048577,-190.432946,0.000214,2]
[394119739,1763307048590,-1118.53893,0.000214,2]
[394119740,1763307048600,-151.0,0.000214,2]
[394119741,1763307048610,-1118.53893,0.000214,2]
[394119742,1763307048619,-190.01175,0.000214,2]
[394119743,1763307048629,-151.0,0.000214,2]
[394119744,1763307048639,-1118.53893,0.000214,2]
[394119745,1763307048648,-151.0,0.000214,2]
[394119746,1763307048658,-151.0,0.000214,2]
[394119747,1763307048668,-151.0,0.000214,2]
[394119748,1763307048677,-151.0,0.000214,2]
[394119749,1763307048687,-151.0,0.000214,2]
[394119750,1763307048696,-151.0,0.000214,2]
[394119751,1763307048706,-151.0,0.000214,2]
[394119752,1763307048716,-151.0,0.000214,2]
[394119753,1763307048730,-151.0,0.000214,2]
[394119754,1763307048740,-151.0,0.000214,2]